[Event "*** SCC Grand Prix: Titled Tuesday Blitz"]
[Site "Chess.com"]
[Date "2020.10.06"]
[Round "7"]
[White "anon569"]
[Black "pfalcon1949"]
[Result "1-0"]
[WhiteElo "2245"]
[BlackElo "2016"]
[TimeControl "180+1"]
[EndTime "11:18:29 PDT"]
[Termination "anon569 won on time"]

1. e4 {[%clk 0:03:00.9]} 1... c6 {[%clk 0:02:57]} 2. d4 {[%clk 0:02:48.3]} 2...
d5 {[%clk 0:02:55.3]} 3. Nd2 {[%clk 0:02:48.3]} 3... dxe4 {[%clk 0:02:52.7]} 4.
Nxe4 {[%clk 0:02:48.6]} 4... Nf6 {[%clk 0:02:52.6]} 5. Nxf6+ {[%clk 0:02:46.9]}
5... exf6 {[%clk 0:02:49.7]} 6. Be3 {[%clk 0:02:45.8]} 6... Bd6 {[%clk
0:02:49.6]} 7. Qd2 {[%clk 0:02:45.4]} 7... O-O {[%clk 0:02:42.9]} 8. Bd3 {[%clk
0:02:42.4]} 8... Re8 {[%clk 0:02:42.5]} 9. O-O-O {[%clk 0:02:40.4]} 9... Nd7
{[%clk 0:02:37.1]} 10. c4 {[%clk 0:02:33.6]} 10... Nf8 {[%clk 0:02:36.6]} 11.
Ne2 {[%clk 0:02:30.6]} 11... Be6 {[%clk 0:02:30.8]} 12. Kb1 {[%clk 0:02:26.9]}
12... Rb8 {[%clk 0:02:15.3]} 13. d5 {[%clk 0:02:18.1]} 13... cxd5 {[%clk
0:02:11.3]} 14. cxd5 {[%clk 0:02:17.5]} 14... Bd7 {[%clk 0:01:39.7]} 15. Nd4
{[%clk 0:02:11.5]} 15... a5 {[%clk 0:01:25.4]} 16. Nb5 {[%clk 0:01:50.7]} 16...
Bb4 {[%clk 0:01:20.5]} 17. Qc2 {[%clk 0:01:41.6]} 17... Rc8 {[%clk 0:01:17.3]}
18. Qb3 {[%clk 0:01:41.1]} 18... Bg4 {[%clk 0:01:07]} 19. Rc1 {[%clk 0:01:36.3]}
19... Qd7 {[%clk 0:01:06.8]} 20. a3 {[%clk 0:01:30.9]} 20... Bd6 {[%clk
0:00:55.4]} 21. Nd4 {[%clk 0:01:24.2]} 21... Rb8 {[%clk 0:00:44.4]} 22. Bb5
{[%clk 0:01:22.6]} 22... Qe7 {[%clk 0:00:30.1]} 23. Bxe8 {[%clk 0:01:20.8]}
23... Qxe8 {[%clk 0:00:30.1]} 24. Nb5 {[%clk 0:01:19.3]} 24... Bf5+ {[%clk
0:00:14.8]} 25. Ka1 {[%clk 0:01:17.9]} 25... Be5 {[%clk 0:00:12.4]} 26. f4
{[%clk 0:00:54.8]} 26... Bxb2+ {[%clk 0:00:02.9]} 27. Kxb2 {[%clk 0:00:54]} 1-0

[Event "*** SCC Grand Prix: Titled Tuesday Blitz"]
[Site "Chess.com"]
[Date "2020.10.06"]
[Round "7"]
[White "SHIVACalypso"]
[Black "Blagorod"]
[Result "1/2-1/2"]
[WhiteElo "2347"]
[BlackElo "2186"]
[TimeControl "180+1"]
[EndTime "11:18:30 PDT"]
[Termination "Game drawn by repetition"]

1. Nf3 {[%clk 0:03:00.9]} 1... Nc6 {[%clk 0:02:59.3]} 2. c4 {[%clk 0:03:01.8]}
2... e5 {[%clk 0:02:58.2]} 3. Nc3 {[%clk 0:03:01.1]} 3... d6 {[%clk 0:02:58.6]}
4. d3 {[%clk 0:03:00.1]} 4... Be6 {[%clk 0:02:55.5]} 5. g3 {[%clk 0:02:59.6]}
5... Be7 {[%clk 0:02:53.7]} 6. Bg2 {[%clk 0:02:58.3]} 6... Qd7 {[%clk
0:02:53.9]} 7. O-O {[%clk 0:02:53.7]} 7... Bh3 {[%clk 0:02:48.4]} 8. Rb1 {[%clk
0:02:51.6]} 8... h5 {[%clk 0:02:47.6]} 9. Nd5 {[%clk 0:02:46.7]} 9... Bxg2
{[%clk 0:02:29.8]} 10. Kxg2 {[%clk 0:02:45.8]} 10... h4 {[%clk 0:02:27.2]} 11.
Qa4 {[%clk 0:02:18.5]} 11... hxg3 {[%clk 0:02:00.3]} 12. fxg3 {[%clk 0:02:16.5]}
12... O-O-O {[%clk 0:01:46.6]} 13. Be3 {[%clk 0:02:07.7]} 13... Kb8 {[%clk
0:01:25.8]} 14. b4 {[%clk 0:01:59.7]} 14... g5 {[%clk 0:01:21.5]} 15. b5 {[%clk
0:01:58.2]} 15... Nd4 {[%clk 0:01:19.2]} 16. Bxd4 {[%clk 0:01:57.7]} 16... exd4
{[%clk 0:01:18.2]} 17. Rb3 {[%clk 0:01:35.2]} 17... Qh3+ {[%clk 0:00:27.7]} 18.
Kf2 {[%clk 0:01:33.6]} 18... g4 {[%clk 0:00:28.3]} 19. Ra3 {[%clk 0:01:32.8]}
19... gxf3 {[%clk 0:00:27.6]} 20. Qxa7+ {[%clk 0:01:31.1]} 20... Kc8 {[%clk
0:00:28.2]} 21. exf3 {[%clk 0:01:15.6]} 21... Qxh2+ {[%clk 0:00:28.2]} 22. Ke1
{[%clk 0:01:15.9]} 22... Qc2 {[%clk 0:00:20.5]} 23. Qa8+ {[%clk 0:00:44.2]}
23... Kd7 {[%clk 0:00:20]} 24. Qxb7 {[%clk 0:00:44.5]} 24... Qc1+ {[%clk
0:00:19.6]} 25. Kf2 {[%clk 0:00:44.1]} 25... Qc2+ {[%clk 0:00:15.4]} 26. Ke1
{[%clk 0:00:43]} 26... Qc1+ {[%clk 0:00:14.5]} 27. Kf2 {[%clk 0:00:42]} 27...
Qc2+ {[%clk 0:00:13.7]} 28. Ke1 {[%clk 0:00:41.9]} 1/2-1/2

[Event "*** SCC Grand Prix: Titled Tuesday Blitz"]
[Site "Chess.com"]
[Date "2020.10.06"]
[Round "7"]
[White "TigrVShlyape"]
[Black "NewBornNow"]
[Result "1-0"]
[WhiteElo "2824"]
[BlackElo "2650"]
[TimeControl "180+1"]
[EndTime "11:18:31 PDT"]
[Termination "TigrVShlyape won by checkmate"]

1. d4 {[%clk 0:03:00.9]} 1... d6 {[%clk 0:02:57]} 2. Nf3 {[%clk 0:02:58.4]} 2...
Nf6 {[%clk 0:02:56]} 3. c3 {[%clk 0:02:56.8]} 3... g6 {[%clk 0:02:52]} 4. Bg5
{[%clk 0:02:55.5]} 4... Bg7 {[%clk 0:02:51.9]} 5. Nbd2 {[%clk 0:02:55.2]} 5...
Nbd7 {[%clk 0:02:50.9]} 6. e4 {[%clk 0:02:55]} 6... e5 {[%clk 0:02:50.9]} 7. Bd3
{[%clk 0:02:54.4]} 7... O-O {[%clk 0:02:46.8]} 8. O-O {[%clk 0:02:54]} 8... c6
{[%clk 0:02:43.7]} 9. Re1 {[%clk 0:02:52.2]} 9... Qc7 {[%clk 0:02:38]} 10. a4
{[%clk 0:02:50.4]} 10... a5 {[%clk 0:02:28.5]} 11. Qc2 {[%clk 0:02:44.3]} 11...
Re8 {[%clk 0:02:27.3]} 12. Rad1 {[%clk 0:02:41.6]} 12... Nf8 {[%clk 0:02:22.7]}
13. h3 {[%clk 0:02:33.2]} 13... Nh5 {[%clk 0:02:20]} 14. Bf1 {[%clk 0:02:31.3]}
14... Nf4 {[%clk 0:02:10.7]} 15. dxe5 {[%clk 0:02:21.8]} 15... dxe5 {[%clk
0:02:07]} 16. Nc4 {[%clk 0:02:21.8]} 16... N8e6 {[%clk 0:02:02.4]} 17. Bh4
{[%clk 0:02:20.3]} 17... Nc5 {[%clk 0:01:51.8]} 18. Nd6 {[%clk 0:02:16.2]} 18...
Rf8 {[%clk 0:01:49.7]} 19. Nxc8 {[%clk 0:02:15.8]} 19... Rfxc8 {[%clk
0:01:46.9]} 20. Bc4 {[%clk 0:02:15.6]} 20... h6 {[%clk 0:01:44.6]} 21. Rd2
{[%clk 0:02:12.6]} 21... g5 {[%clk 0:01:28.1]} 22. Bg3 {[%clk 0:02:10]} 22...
Rd8 {[%clk 0:01:27.9]} 23. Red1 {[%clk 0:01:56.4]} 23... Rxd2 {[%clk 0:01:26.9]}
24. Rxd2 {[%clk 0:01:51.3]} 24... Rd8 {[%clk 0:01:24.3]} 25. b3 {[%clk
0:01:25.5]} 25... Rxd2 {[%clk 0:01:19.9]} 26. Nxd2 {[%clk 0:01:24.9]} 26... Qd7
{[%clk 0:01:19]} 27. Nf1 {[%clk 0:01:24.6]} 27... b5 {[%clk 0:01:15.6]} 28. axb5
{[%clk 0:01:19.7]} 28... cxb5 {[%clk 0:01:15.5]} 29. Bd5 {[%clk 0:01:16.6]}
29... Nxd5 {[%clk 0:01:13.8]} 30. exd5 {[%clk 0:01:16.2]} 30... Qxd5 {[%clk
0:01:13.7]} 31. b4 {[%clk 0:01:16]} 31... axb4 {[%clk 0:01:00.6]} 32. cxb4
{[%clk 0:01:15.3]} 32... Nd3 {[%clk 0:00:44.5]} 33. Ne3 {[%clk 0:01:13.5]} 33...
Qe4 {[%clk 0:00:42.8]} 34. Qc8+ {[%clk 0:01:01.2]} 34... Kh7 {[%clk 0:00:41.8]}
35. Qd7 {[%clk 0:01:01.5]} 35... Kg6 {[%clk 0:00:30.5]} 36. h4 {[%clk
0:01:00.6]} 36... gxh4 {[%clk 0:00:28.5]} 37. Bxh4 {[%clk 0:01:00.7]} 37... Qd4
{[%clk 0:00:20.2]} 38. Qf5# {[%clk 0:00:59]} 1-0

[Event "*** SCC Grand Prix: Titled Tuesday Blitz"]
[Site "Chess.com"]
[Date "2020.10.06"]
[Round "7"]
[White "As0nchess"]
[Black "RusPakhom"]
[Result "1-0"]
[WhiteElo "2508"]
[BlackElo "2313"]
[TimeControl "180+1"]
[EndTime "11:18:35 PDT"]
[Termination "As0nchess won by resignation"]

1. c4 {[%clk 0:03:00.9]} 1... c6 {[%clk 0:02:58.6]} 2. Nf3 {[%clk 0:02:59.2]}
2... d5 {[%clk 0:02:59.5]} 3. e3 {[%clk 0:02:59.6]} 3... Nf6 {[%clk 0:02:59.6]}
4. d4 {[%clk 0:02:59.6]} 4... a6 {[%clk 0:02:59.7]} 5. Nbd2 {[%clk 0:02:58.7]}
5... b5 {[%clk 0:02:59.6]} 6. c5 {[%clk 0:02:58.1]} 6... Bg4 {[%clk 0:02:59.2]}
7. h3 {[%clk 0:02:57.6]} 7... Bh5 {[%clk 0:02:58.7]} 8. Be2 {[%clk 0:02:54.9]}
8... Nbd7 {[%clk 0:02:58.8]} 9. O-O {[%clk 0:02:51.5]} 9... Qc7 {[%clk
0:02:58.5]} 10. a3 {[%clk 0:02:46.5]} 10... e5 {[%clk 0:02:58.1]} 11. b4 {[%clk
0:02:45.5]} 11... e4 {[%clk 0:02:48.1]} 12. Ne1 {[%clk 0:02:43.5]} 12... Bxe2
{[%clk 0:02:47.7]} 13. Qxe2 {[%clk 0:02:44.4]} 13... a5 {[%clk 0:02:48.1]} 14.
Bb2 {[%clk 0:02:43.7]} 14... Be7 {[%clk 0:02:47.3]} 15. Nb3 {[%clk 0:02:43.6]}
15... a4 {[%clk 0:02:41]} 16. Nd2 {[%clk 0:02:42.9]} 16... O-O {[%clk
0:02:41.1]} 17. f3 {[%clk 0:02:41.4]} 17... exf3 {[%clk 0:02:40.7]} 18. Nexf3
{[%clk 0:02:41.8]} 18... Ne4 {[%clk 0:02:40.7]} 19. Nxe4 {[%clk 0:02:38.4]}
19... dxe4 {[%clk 0:02:40.3]} 20. Nd2 {[%clk 0:02:39.3]} 20... f5 {[%clk
0:02:37.8]} 21. Rad1 {[%clk 0:02:37.4]} 21... Qg3 {[%clk 0:01:52.2]} 22. d5
{[%clk 0:02:32.1]} 22... cxd5 {[%clk 0:01:38.9]} 23. Nb1 {[%clk 0:02:30.6]}
23... Ne5 {[%clk 0:01:07.3]} 24. Bxe5 {[%clk 0:02:29.8]} 24... Qxe5 {[%clk
0:01:06.8]} 25. Qxb5 {[%clk 0:02:30.7]} 25... Bg5 {[%clk 0:01:02.9]} 26. Rfe1
{[%clk 0:02:26.7]} 26... f4 {[%clk 0:00:57.2]} 27. exf4 {[%clk 0:02:26.2]} 27...
Qxf4 {[%clk 0:00:47.8]} 28. c6 {[%clk 0:02:24.1]} 28... Qg3 {[%clk 0:00:19.4]}
29. Qxd5+ {[%clk 0:02:19.4]} 29... Kh8 {[%clk 0:00:19.3]} 30. Nd2 {[%clk
0:02:12.7]} 30... e3 {[%clk 0:00:11.7]} 31. Ne4 {[%clk 0:02:04.9]} 31... Qh4
{[%clk 0:00:03.5]} 32. Nxg5 {[%clk 0:02:02.1]} 32... Qf2+ {[%clk 0:00:03.5]} 33.
Kh1 {[%clk 0:02:01.6]} 33... e2 {[%clk 0:00:03.7]} 34. Rc1 {[%clk 0:01:33.2]}
34... Qf1+ {[%clk 0:00:02.6]} 35. Kh2 {[%clk 0:01:31.9]} 35... Qf4+ {[%clk
0:00:02.1]} 36. Kg1 {[%clk 0:01:32]} 36... Qf2+ {[%clk 0:00:02.4]} 37. Kh1
{[%clk 0:01:29]} 37... Qxe1+ {[%clk 0:00:02.6]} 38. Rxe1 {[%clk 0:01:28]} 38...
Rf1+ {[%clk 0:00:03.3]} 39. Kh2 {[%clk 0:01:26.2]} 39... h6 {[%clk 0:00:02.5]}
40. Nf7+ {[%clk 0:01:24.7]} 40... Kh7 {[%clk 0:00:02.1]} 1-0

[Event "*** SCC Grand Prix: Titled Tuesday Blitz"]
[Site "Chess.com"]
[Date "2020.10.06"]
[Round "7"]
[White "topotun"]
[Black "exoticprincess"]
[Result "1-0"]
[WhiteElo "2767"]
[BlackElo "2873"]
[TimeControl "180+1"]
[EndTime "11:18:36 PDT"]
[Termination "topotun won by resignation"]

1. e4 {[%clk 0:03:00.9]} 1... c5 {[%clk 0:02:59]} 2. Nf3 {[%clk 0:03:00.7]} 2...
e6 {[%clk 0:02:59.4]} 3. d4 {[%clk 0:03:00.8]} 3... cxd4 {[%clk 0:03:00.3]} 4.
Nxd4 {[%clk 0:03:01.7]} 4... Nf6 {[%clk 0:03:00.9]} 5. Nc3 {[%clk 0:03:01.8]}
5... Bb4 {[%clk 0:03:01.4]} 6. e5 {[%clk 0:03:00.5]} 6... Nd5 {[%clk 0:03:01.6]}
7. Bd2 {[%clk 0:03:00.2]} 7... Bxc3 {[%clk 0:03:01.4]} 8. bxc3 {[%clk
0:03:00.8]} 8... O-O {[%clk 0:03:01.9]} 9. c4 {[%clk 0:02:49.8]} 9... Ne7 {[%clk
0:03:01.6]} 10. Bb4 {[%clk 0:02:38.9]} 10... f6 {[%clk 0:02:11.8]} 11. Nxe6
{[%clk 0:02:31.4]} 11... dxe6 {[%clk 0:01:52.8]} 12. Qxd8 {[%clk 0:02:30.6]}
12... Rxd8 {[%clk 0:01:53.7]} 13. Bxe7 {[%clk 0:02:31.2]} 13... Rd7 {[%clk
0:01:46.4]} 14. exf6 {[%clk 0:02:30.5]} 14... Nc6 {[%clk 0:01:46.6]} 15. Be2
{[%clk 0:01:45.1]} 15... Nxe7 {[%clk 0:01:44.6]} 16. fxe7 {[%clk 0:01:46]} 16...
Kf7 {[%clk 0:01:41.7]} 17. h4 {[%clk 0:01:10]} 17... Kxe7 {[%clk 0:01:40.9]} 18.
Rh3 {[%clk 0:01:09.9]} 18... Rc7 {[%clk 0:01:39.7]} 19. Rg3 {[%clk 0:01:08.1]}
19... Kf6 {[%clk 0:01:34.9]} 20. Bd3 {[%clk 0:00:57.6]} 20... h6 {[%clk
0:01:17.7]} 21. Rf3+ {[%clk 0:00:51.6]} 21... Ke7 {[%clk 0:01:17.6]} 22. Bg6
{[%clk 0:00:41.3]} 22... Rxc4 {[%clk 0:01:17.3]} 23. Rf7+ {[%clk 0:00:40.1]}
23... Kd6 {[%clk 0:01:17.3]} 24. O-O-O+ {[%clk 0:00:36.8]} 24... Kc6 {[%clk
0:01:14.6]} 25. g3 {[%clk 0:00:24.4]} 25... Ra4 {[%clk 0:01:07.5]} 26. Rd8
{[%clk 0:00:19.3]} 26... Rxa2 {[%clk 0:01:04.6]} 27. Rxg7 {[%clk 0:00:19]} 27...
a5 {[%clk 0:01:00.6]} 28. Be4+ {[%clk 0:00:18.8]} 28... Kb6 {[%clk 0:01:00.3]}
29. Rh7 {[%clk 0:00:11.5]} 29... a4 {[%clk 0:01:00]} 30. Kb1 {[%clk 0:00:09.4]}
30... Ra3 {[%clk 0:00:59.7]} 31. Kb2 {[%clk 0:00:08.6]} 1-0

[Event "*** SCC Grand Prix: Titled Tuesday Blitz"]
[Site "Chess.com"]
[Date "2020.10.06"]
[Round "7"]
[White "tigra"]
[Black "Ermito2020"]
[Result "1-0"]
[WhiteElo "2831"]
[BlackElo "2665"]
[TimeControl "180+1"]
[EndTime "11:18:36 PDT"]
[Termination "tigra won by resignation"]

1. e4 {[%clk 0:02:59.8]} 1... e6 {[%clk 0:03:00.6]} 2. d4 {[%clk 0:02:58.9]}
2... d5 {[%clk 0:03:01.3]} 3. e5 {[%clk 0:02:57.6]} 3... c5 {[%clk 0:03:00.5]}
4. c3 {[%clk 0:02:54.2]} 4... Nc6 {[%clk 0:03:01]} 5. Nf3 {[%clk 0:02:54.1]}
5... Qb6 {[%clk 0:03:00.4]} 6. a3 {[%clk 0:02:53.9]} 6... Bd7 {[%clk 0:03:00.5]}
7. b4 {[%clk 0:02:46.7]} 7... cxd4 {[%clk 0:03:00.4]} 8. cxd4 {[%clk 0:02:46.8]}
8... Nh6 {[%clk 0:03:00.3]} 9. Be3 {[%clk 0:02:44.8]} 9... Nf5 {[%clk
0:02:59.9]} 10. Bd3 {[%clk 0:02:45.3]} 10... Be7 {[%clk 0:02:52.3]} 11. Nc3
{[%clk 0:02:42.8]} 11... O-O {[%clk 0:02:51.5]} 12. Bxf5 {[%clk 0:02:39.9]}
12... exf5 {[%clk 0:02:50.6]} 13. Nxd5 {[%clk 0:02:39.1]} 13... Qd8 {[%clk
0:02:49.2]} 14. O-O {[%clk 0:02:38.3]} 14... Be6 {[%clk 0:02:48.1]} 15. Nf4
{[%clk 0:02:37.7]} 15... Bd5 {[%clk 0:02:45.6]} 16. Rc1 {[%clk 0:02:35.6]} 16...
Qd7 {[%clk 0:02:42.1]} 17. b5 {[%clk 0:02:34.4]} 17... Na5 {[%clk 0:02:41.5]}
18. Nxd5 {[%clk 0:02:13.9]} 18... Qxd5 {[%clk 0:02:41.1]} 19. Qd3 {[%clk
0:02:14.8]} 19... Qe4 {[%clk 0:02:26.9]} 20. Qxe4 {[%clk 0:02:06.7]} 20... fxe4
{[%clk 0:02:26.8]} 21. Nd2 {[%clk 0:02:07.3]} 21... Bxa3 {[%clk 0:02:25.3]} 22.
Ra1 {[%clk 0:02:07.3]} 22... Bb4 {[%clk 0:02:23.2]} 23. Nxe4 {[%clk 0:02:07.5]}
23... Nc4 {[%clk 0:02:21.8]} 24. Ra4 {[%clk 0:02:07.1]} 24... Nxe3 {[%clk
0:02:15.7]} 25. fxe3 {[%clk 0:02:08]} 25... Be7 {[%clk 0:02:06.7]} 26. Rfa1
{[%clk 0:02:07.9]} 26... a6 {[%clk 0:01:46.4]} 27. bxa6 {[%clk 0:02:07.7]} 27...
b5 {[%clk 0:01:46.5]} 28. Ra5 {[%clk 0:02:07.6]} 28... b4 {[%clk 0:01:46.4]} 29.
a7 {[%clk 0:02:07.8]} 29... Rfc8 {[%clk 0:01:45.1]} 30. Rb5 {[%clk 0:02:06.5]}
30... f5 {[%clk 0:01:37.4]} 31. exf6 {[%clk 0:02:05.7]} 31... gxf6 {[%clk
0:01:36.8]} 32. Rb7 {[%clk 0:02:06]} 32... Kf8 {[%clk 0:01:32.9]} 33. Kf2 {[%clk
0:02:04.5]} 33... Ke8 {[%clk 0:00:52.2]} 34. Kf3 {[%clk 0:02:02]} 34... Kd8
{[%clk 0:00:50.6]} 35. Kf4 {[%clk 0:02:01.3]} 35... Rc2 {[%clk 0:00:50.9]} 36.
Rb8+ {[%clk 0:02:00.4]} 36... Rc8 {[%clk 0:00:50.7]} 37. Rxa8 {[%clk 0:01:58.9]}
37... Rxa8 {[%clk 0:00:50.4]} 38. Kf5 {[%clk 0:01:56.7]} 38... Kc7 {[%clk
0:00:48.3]} 39. Ke6 {[%clk 0:01:56.3]} 39... Bf8 {[%clk 0:00:46]} 40. d5 {[%clk
0:01:51.9]} 40... Kb7 {[%clk 0:00:38.3]} 41. d6 {[%clk 0:01:51.3]} 41... f5
{[%clk 0:00:22.8]} 42. Kxf5 {[%clk 0:01:36.6]} 42... Rxa7 {[%clk 0:00:22.1]} 43.
d7 {[%clk 0:01:31.1]} 43... Be7 {[%clk 0:00:17.9]} 44. Ke6 {[%clk 0:01:30.2]}
44... Bd8 {[%clk 0:00:11]} 45. Nc5+ {[%clk 0:01:29.7]} 45... Kb6 {[%clk
0:00:10.3]} 46. Rxa7 {[%clk 0:01:29.3]} 46... Kxa7 {[%clk 0:00:10.6]} 47. Kd6
{[%clk 0:01:30.2]} 47... Kb6 {[%clk 0:00:10.6]} 48. e4 {[%clk 0:01:29.5]} 48...
Kb5 {[%clk 0:00:10.5]} 49. e5 {[%clk 0:01:28.9]} 49... Kc4 {[%clk 0:00:10.8]}
50. e6 {[%clk 0:01:29.1]} 50... b3 {[%clk 0:00:11]} 51. Nxb3 {[%clk 0:01:29]}
51... Kxb3 {[%clk 0:00:11.5]} 52. e7 {[%clk 0:01:29.2]} 1-0

[Event "*** SCC Grand Prix: Titled Tuesday Blitz"]
[Site "Chess.com"]
[Date "2020.10.06"]
[Round "7"]
[White "Matveev_Vladimir"]
[Black "smshk35"]
[Result "0-1"]
[WhiteElo "2603"]
[BlackElo "2474"]
[TimeControl "180+1"]
[EndTime "11:18:36 PDT"]
[Termination "smshk35 won by resignation"]

1. d4 {[%clk 0:03:00.9]} 1... c6 {[%clk 0:02:59.1]} 2. c4 {[%clk 0:03:00.4]}
2... g6 {[%clk 0:02:58.2]} 3. Nf3 {[%clk 0:02:58.4]} 3... Bg7 {[%clk 0:02:57.5]}
4. Nc3 {[%clk 0:02:55]} 4... d5 {[%clk 0:02:55.3]} 5. cxd5 {[%clk 0:02:51.9]}
5... cxd5 {[%clk 0:02:55.5]} 6. Bf4 {[%clk 0:02:52.5]} 6... Nf6 {[%clk
0:02:54.8]} 7. e3 {[%clk 0:02:51.8]} 7... O-O {[%clk 0:02:54.9]} 8. h3 {[%clk
0:02:51.9]} 8... Nc6 {[%clk 0:02:55]} 9. Bd3 {[%clk 0:02:50.8]} 9... Qb6 {[%clk
0:02:51.9]} 10. O-O {[%clk 0:02:49]} 10... Qxb2 {[%clk 0:02:47.5]} 11. Nb5
{[%clk 0:02:42.2]} 11... a6 {[%clk 0:02:39.8]} 12. Nc7 {[%clk 0:02:32.5]} 12...
Ra7 {[%clk 0:02:37.2]} 13. Qa4 {[%clk 0:02:32.3]} 13... b5 {[%clk 0:02:29.3]}
14. Qd1 {[%clk 0:02:28.1]} 14... Qa3 {[%clk 0:01:47.7]} 15. Bxb5 {[%clk
0:02:14]} 15... axb5 {[%clk 0:01:45]} 16. Nxb5 {[%clk 0:02:14.9]} 16... Qa5
{[%clk 0:01:41.6]} 17. Nxa7 {[%clk 0:02:15.8]} 17... Qxa7 {[%clk 0:01:42.5]} 18.
Qb3 {[%clk 0:02:15]} 18... Ba6 {[%clk 0:01:35.6]} 19. Rfc1 {[%clk 0:02:09.7]}
19... Bc4 {[%clk 0:01:35.5]} 20. Qc3 {[%clk 0:01:53.5]} 20... Ne4 {[%clk
0:01:33.8]} 21. Qe1 {[%clk 0:01:53.7]} 21... Ra8 {[%clk 0:01:24.3]} 22. a4
{[%clk 0:01:50.9]} 22... Na5 {[%clk 0:01:21.5]} 23. Ra3 {[%clk 0:01:45.5]} 23...
Qd7 {[%clk 0:00:47.8]} 24. Ne5 {[%clk 0:01:29.5]} 24... Bxe5 {[%clk 0:00:47.6]}
25. Bxe5 {[%clk 0:01:30.4]} 25... f6 {[%clk 0:00:48.1]} 26. Bh2 {[%clk
0:01:28.2]} 26... Nb3 {[%clk 0:00:42.9]} 27. Rc2 {[%clk 0:01:25.3]} 27... Rxa4
{[%clk 0:00:41]} 28. Rxa4 {[%clk 0:01:24.5]} 28... Qxa4 {[%clk 0:00:41.9]} 29.
Rb2 {[%clk 0:01:21.1]} 29... Qa3 {[%clk 0:00:36.8]} 30. Rb1 {[%clk 0:01:16.2]}
30... Ned2 {[%clk 0:00:31.9]} 31. Rd1 {[%clk 0:01:15.7]} 31... Qb2 {[%clk
0:00:30.3]} 32. Bg3 {[%clk 0:01:07.8]} 32... Kf7 {[%clk 0:00:24.9]} 33. f3
{[%clk 0:01:04.8]} 33... Qc2 {[%clk 0:00:20.5]} 34. Bf2 {[%clk 0:01:03.9]} 34...
Bb5 {[%clk 0:00:16.6]} 35. Bg3 {[%clk 0:01:00.7]} 35... Nc4 {[%clk 0:00:16.1]}
36. e4 {[%clk 0:00:59.5]} 36... Ne3 {[%clk 0:00:11.5]} 0-1

[Event "*** SCC Grand Prix: Titled Tuesday Blitz"]
[Site "Chess.com"]
[Date "2020.10.06"]
[Round "7"]
[White "elohunter1999"]
[Black "RobertoJBM"]
[Result "1/2-1/2"]
[WhiteElo "2582"]
[BlackElo "2732"]
[TimeControl "180+1"]
[EndTime "11:18:38 PDT"]
[Termination "Game drawn by repetition"]

1. e4 {[%clk 0:03:00.9]} 1... c6 {[%clk 0:02:59.8]} 2. Nc3 {[%clk 0:02:58.2]}
2... d5 {[%clk 0:03:00.7]} 3. Nf3 {[%clk 0:02:58.3]} 3... dxe4 {[%clk
0:03:01.5]} 4. Nxe4 {[%clk 0:02:59.1]} 4... Bg4 {[%clk 0:03:02.1]} 5. h3 {[%clk
0:02:53.7]} 5... Bxf3 {[%clk 0:03:01.6]} 6. Qxf3 {[%clk 0:02:54.6]} 6... Nd7
{[%clk 0:03:02.2]} 7. d4 {[%clk 0:02:54.1]} 7... Ndf6 {[%clk 0:03:02.1]} 8.
Nxf6+ {[%clk 0:02:53.2]} 8... Nxf6 {[%clk 0:03:03]} 9. c3 {[%clk 0:02:53.5]}
9... Qd5 {[%clk 0:03:03.5]} 10. Qxd5 {[%clk 0:02:49.9]} 10... Nxd5 {[%clk
0:03:04.4]} 11. Bd3 {[%clk 0:02:46.9]} 11... e6 {[%clk 0:03:04.1]} 12. Bd2
{[%clk 0:02:46]} 12... g6 {[%clk 0:03:04.2]} 13. O-O-O {[%clk 0:02:45.4]} 13...
h5 {[%clk 0:03:04.3]} 14. Kb1 {[%clk 0:02:40.5]} 14... Bh6 {[%clk 0:03:03.6]}
15. Be1 {[%clk 0:02:39.5]} 15... O-O-O {[%clk 0:03:02]} 16. h4 {[%clk
0:02:38.2]} 16... Rd7 {[%clk 0:03:00.1]} 17. g3 {[%clk 0:02:35.3]} 17... Rhd8
{[%clk 0:02:57.5]} 18. Be2 {[%clk 0:02:21.3]} 18... Ne7 {[%clk 0:02:48.5]} 19.
f4 {[%clk 0:02:14.7]} 19... c5 {[%clk 0:02:25.6]} 20. Bf2 {[%clk 0:02:12.4]}
20... cxd4 {[%clk 0:02:25.6]} 21. Rxd4 {[%clk 0:02:11]} 21... Rxd4 {[%clk
0:02:18.4]} 22. Bxd4 {[%clk 0:02:11.9]} 22... Nc6 {[%clk 0:02:17.7]} 23. Be3
{[%clk 0:01:50.6]} 23... Bf8 {[%clk 0:02:13.3]} 24. Kc2 {[%clk 0:01:49.1]} 24...
Kc7 {[%clk 0:02:11.1]} 25. g4 {[%clk 0:01:46.8]} 25... hxg4 {[%clk 0:02:10.4]}
26. Bxg4 {[%clk 0:01:47.7]} 26... Bd6 {[%clk 0:02:04.5]} 27. h5 {[%clk
0:01:47.9]} 27... gxh5 {[%clk 0:02:05]} 28. Rxh5 {[%clk 0:01:47]} 28... Rd7
{[%clk 0:02:05.4]} 29. f5 {[%clk 0:01:37.4]} 29... Ne5 {[%clk 0:01:45.1]} 30.
Be2 {[%clk 0:01:11.1]} 30... a6 {[%clk 0:01:42.9]} 31. fxe6 {[%clk 0:01:08.2]}
31... fxe6 {[%clk 0:01:43.8]} 32. Rh6 {[%clk 0:01:07.6]} 32... Re7 {[%clk
0:01:43]} 33. Bh5 {[%clk 0:00:47.5]} 33... Kd7 {[%clk 0:01:36.2]} 34. Bg5 {[%clk
0:00:44.4]} 34... Rg7 {[%clk 0:01:33.7]} 35. Bf6 {[%clk 0:00:44]} 35... Rg2+
{[%clk 0:01:33.2]} 36. Kb3 {[%clk 0:00:44.2]} 36... Nd3 {[%clk 0:01:25.2]} 37.
Rh7+ {[%clk 0:00:44]} 37... Kc8 {[%clk 0:01:16.4]} 38. Rh8+ {[%clk 0:00:39.3]}
38... Kd7 {[%clk 0:01:11.1]} 39. Rh7+ {[%clk 0:00:13.5]} 39... Kc8 {[%clk
0:01:09.3]} 40. Rh8+ {[%clk 0:00:13.7]} 40... Kd7 {[%clk 0:01:08.9]} 41. Rh7+
{[%clk 0:00:05.7]} 1/2-1/2